fUSD/lending_fUSD_20260703
["ID","MTS","AMOUNT","RATE_DAILY","PERIOD"]
[426940951,1783035043000,-800.0,0.0003,2]
[426940950,1783035043000,-800.0,0.0003,2]
[426940961,1783035043000,-10000.0,0.0003,2]
[426940957,1783035043000,-800.0,0.0003,2]
[426940959,1783035043000,-800.0,0.0003,2]
[426940954,1783035043000,-800.0,0.0003,2]
[426940962,1783035043000,-12500.0,0.0003,2]
[426940963,1783035043000,-10000.0,0.0003,2]
[426940967,1783035043000,-11781.0204727,0.0003,120]
[426940965,1783035043000,-12500.0,0.0003,2]
[426940966,1783035043000,-10000.0,0.0003,2]
[426940968,1783035043000,-4482.732,0.0003009,25]
[426940969,1783035043000,-172.666,0.0003009,25]
[426940971,1783035043000,-548.1388162,0.00030136,2]
[426940975,1783035043000,-431.29922464,0.0003018,2]
[426940976,1783035043000,-441.43113121,0.0003022,2]
[426940970,1783035043000,-1595.0,0.00030113,5]
[426940973,1783035043000,-242.33,0.00030137,30]
[426940977,1783035043000,-12500.0,0.0003025,2]
[426940981,1783035043000,-4752.26,0.0003037,30]
[426940978,1783035043000,-12500.0,0.0003025,2]
[426940980,1783035043000,-10000.0,0.00030333,2]
[426940979,1783035043000,-466.0,0.00030327,2]
[426940983,1783035043000,-730.6,0.0003037,115]
[426940987,1783035043000,-388.9235017,0.00030466,2]
[426941013,1783035043000,-8416.86317064,0.00031,7]
[426941027,1783035043000,-1740.34713151,0.00031475,30]
[426941014,1783035043000,-800.0,0.00031,2]
[426941049,1783035043000,-167.1866142,0.00031932,30]
[426941047,1783035043000,-157.0980069,0.00031932,30]
[426941048,1783035043000,-150.0,0.00031932,30]
[426941050,1783035043000,-150.0,0.00031932,30]
[426941051,1783035043000,-150.0,0.00031932,30]
[426941052,1783035043000,-175.81969528,0.00031943,2]
[426941057,1783035043000,-800.0,0.00032,5]
[426941056,1783035043000,-8416.86317064,0.00032,7]
[426941053,1783035043000,-243.49545221,0.00031943,2]
[426941055,1783035043000,-2640.7469,0.00032,2]
[426941054,1783035043000,-172.1977135,0.00031963,30]
[426941060,1783035043000,-182.72727272,0.00032,7]
[426941058,1783035043000,-8416.86317064,0.00032,7]
[426941062,1783035043000,-161.539999,0.000321,12]
[426941061,1783035043000,-150.0,0.00032063,30]
[426941063,1783035043000,-196.88915175,0.00032168,2]
[426941067,1783035043000,-442.0,0.00032271,30]
[426941066,1783035043000,-150.71519319,0.00032268,30]
[426941065,1783035043000,-150.0,0.00032194,30]
[426941068,1783035043000,-154.98925467,0.00032279,2]
[426941064,1783035043000,-150.7194063,0.00032191,2]
[426941069,1783035043000,-151.0,0.00032285,7]
[426941071,1783035043000,-500.0,0.00032288,120]
[426941072,1783035043000,-500.0,0.00032288,120]
[426941016,1783035043000,-264.05,0.00031006,2]
[426941046,1783035043000,-154.32701166,0.00031932,30]
[426941045,1783035043000,-150.0,0.00031932,30]
[426941059,1783035043000,-800.0,0.00032,5]
[426941040,1783035043000,-190.2042748,0.00031925,2]
[426941043,1783035043000,-150.0,0.00031932,30]
[426941017,1783035043000,-242.33,0.0003105,30]
[426941019,1783035043000,-273.0,0.0003108,2]
[426941021,1783035043000,-242.33,0.00031355,30]
[426941022,1783035043000,-35548.10928622,0.0003136,2]
[426941023,1783035043000,-179.2683589,0.000314,2]
[426941018,1783035043000,-1088.0,0.0003108,2]
[426941020,1783035043000,-431.29922464,0.000311,2]
[426941070,1783035043000,-500.0,0.00032288,120]
[426941026,1783035043000,-350.0,0.00031433,2]
[426941025,1783035043000,-2988.1,0.00031426,2]
[426941028,1783035043000,-800.0,0.000315,2]
[426941031,1783035043000,-359.19,0.00031573,3]
[426941024,1783035043000,-24250.96,0.00031426,2]
[426941044,1783035043000,-150.0,0.00031932,30]
[426941042,1783035043000,-259.72419602,0.00031932,30]
[426941029,1783035043000,-800.0,0.000315,2]
[426941041,1783035043000,-150.0,0.00031932,30]
[426941039,1783035043000,-350.0,0.00031903,3]
[426941035,1783035043000,-150.0,0.00031659,30]
[426941038,1783035043000,-350.0,0.00031812,2]
[426941037,1783035043000,-441.43113121,0.00031765,2]
[426941030,1783035043000,-173.89116102,0.00031507,15]
[426941032,1783035043000,-207.61593734,0.00031594,2]
[426941034,1783035043000,-151.0,0.00031646,2]
[426941033,1783035043000,-261.53822926,0.00031594,2]
[426941036,1783035043000,-317.0,0.000317,2]
[426941113,1783035044000,-500.0,0.00032291,2]
[426941117,1783035044000,-200.0,0.00032291,2]
[426941114,1783035044000,-610.0,0.00032291,2]
[426941111,1783035044000,-200.0,0.00032291,2]
[426941108,1783035044000,-200.0,0.00032291,2]
[426941105,1783035044000,-200.0,0.00032291,2]
[426941109,1783035044000,-200.0,0.00032291,2]
[426941107,1783035044000,-200.0,0.00032291,2]
[426941106,1783035044000,-200.0,0.00032291,2]
[426941103,1783035044000,-318.152491,0.00032288,7]
[426941119,1783035044000,-500.0,0.00032291,2]
[426941110,1783035044000,-200.0,0.00032291,2]
[426941116,1783035044000,-200.0,0.00032291,2]
[426941131,1783035044000,-500.0,0.00032291,2]
[426941118,1783035044000,-500.0,0.00032291,2]
[426941121,1783035044000,-500.0,0.00032291,2]
[426941122,1783035044000,-500.0,0.00032291,2]
[426941124,1783035044000,-500.0,0.00032291,2]
[426941126,1783035044000,-500.0,0.00032291,2]
[426941125,1783035044000,-500.0,0.00032291,2]
[426941123,1783035044000,-500.0,0.00032291,2]
[426941127,1783035044000,-500.0,0.00032291,2]
[426941130,1783035044000,-500.0,0.00032291,2]
[426941128,1783035044000,-500.0,0.00032291,2]
[426941129,1783035044000,-500.0,0.00032291,2]
[426941132,1783035044000,-500.0,0.00032291,2]
[426941102,1783035044000,-151.0,0.00032288,7]
[426941112,1783035044000,-500.0,0.00032291,2]
[426941104,1783035044000,-200.0,0.00032291,2]
[426941074,1783035044000,-500.0,0.00032288,120]
[426941101,1783035044000,-151.0,0.00032288,7]
[426941073,1783035044000,-500.0,0.00032288,120]
[426941133,1783035044000,-800.0,0.00032291,30]
[426941075,1783035044000,-851.483759,0.00032288,7]
[426941078,1783035044000,-851.483759,0.00032288,7]
[426941076,1783035044000,-851.483759,0.00032288,7]
[426941079,1783035044000,-1000.0,0.00032288,2]
[426941081,1783035044000,-258.913443,0.00032288,7]
[426941077,1783035044000,-851.483759,0.00032288,7]
[426941080,1783035044000,-258.913443,0.00032288,7]
[426941082,1783035044000,-258.913443,0.00032288,7]
[426941084,1783035044000,-151.0,0.00032288,7]
[426941083,1783035044000,-258.913443,0.00032288,7]
[426941085,1783035044000,-589.093131,0.00032288,7]
[426941086,1783035044000,-589.093131,0.00032288,7]
[426941087,1783035044000,-589.093131,0.00032288,7]
[426941089,1783035044000,-151.0,0.00032288,7]
[426941093,1783035044000,-5523.515329,0.00032288,7]
[426941088,1783035044000,-151.0,0.00032288,7]
[426941090,1783035044000,-589.093131,0.00032288,7]
[426941092,1783035044000,-5523.515329,0.00032288,7]
[426941094,1783035044000,-5523.515329,0.00032288,7]
[426941091,1783035044000,-5523.515329,0.00032288,7]
[426941095,1783035044000,-701.564091,0.00032288,7]
[426941096,1783035044000,-701.564091,0.00032288,7]
[426941097,1783035044000,-701.564091,0.00032288,7]
[426941098,1783035044000,-701.564091,0.00032288,7]
[426941099,1783035044000,-151.0,0.00032288,7]
[426941100,1783035044000,-500.0,0.00032288,7]
[426941137,1783035044000,-200.0,0.00032291,2]
[426941138,1783035044000,-200.0,0.00032291,2]
[426941136,1783035044000,-200.0,0.00032291,2]
[426941167,1783035044000,-20000.0,0.000324,2]
[426941171,1783035044000,-6493.676491,0.000324,7]
[426941173,1783035044000,-151.0,0.000324,7]
[426941176,1783035044000,-6493.676491,0.000324,7]
[426941175,1783035044000,-151.0,0.000324,7]
[426941177,1783035044000,-151.0,0.000324,7]
[426941178,1783035044000,-6493.676491,0.000324,7]
[426941180,1783035044000,-151.0,0.000324,7]
[426941179,1783035044000,-151.0,0.000324,7]
[426941184,1783035044000,-316.821825,0.000324,7]
[426941182,1783035044000,-316.821825,0.000324,7]
[426941181,1783035044000,-316.821825,0.000324,7]
[426941183,1783035044000,-316.821825,0.000324,7]
[426941165,1783035044000,-150.0,0.00032375,30]
[426941185,1783035044000,-222.7,0.00032425,2]
[426941188,1783035044000,-222.7,0.00032429,2]
[426941189,1783035044000,-222.7,0.00032431,2]
[426941187,1783035044000,-222.7,0.00032429,2]
[426941190,1783035044000,-222.7,0.00032431,2]
[426941193,1783035044000,-150.0,0.00032457,30]
[426941196,1783035044000,-800.0,0.000325,5]
[426941191,1783035044000,-222.72,0.00032433,2]
[426941135,1783035044000,-586.0,0.00032291,30]
[426941194,1783035044000,-193.0,0.00032493,10]
[426941195,1783035044000,-800.0,0.000325,5]
[426941197,1783035044000,-150.0,0.00032523,30]
[426941198,1783035044000,-164.28050145,0.00032536,10]
[426941199,1783035044000,-150.71519319,0.00032572,30]
[426941186,1783035044000,-222.7,0.00032427,2]
[426941164,1783035044000,-350.0,0.00032349,2]
[426941192,1783035044000,-222.7,0.00032433,2]
[426941168,1783035044000,-6493.676491,0.000324,7]
[426941169,1783035044000,-151.0,0.000324,7]
[426941134,1783035044000,-800.0,0.00032291,30]
[426941139,1783035044000,-200.0,0.00032291,2]
[426941140,1783035044000,-200.0,0.00032291,2]
[426941142,1783035044000,-200.0,0.00032291,2]
[426941141,1783035044000,-200.0,0.00032291,2]
[426941144,1783035044000,-200.0,0.00032291,2]
[426941145,1783035044000,-200.0,0.00032291,2]
[426941146,1783035044000,-200.0,0.00032291,2]
[426941148,1783035044000,-200.0,0.00032291,2]
[426941147,1783035044000,-200.0,0.00032291,2]
[426941150,1783035044000,-200.0,0.00032291,2]
[426941149,1783035044000,-200.0,0.00032291,2]
[426941143,1783035044000,-200.0,0.00032291,2]
[426941153,1783035044000,-200.0,0.00032291,2]
[426941154,1783035044000,-200.0,0.00032291,2]
[426941163,1783035044000,-150.0,0.00032326,30]
[426941159,1783035044000,-200.0,0.00032291,2]
[426941157,1783035044000,-200.0,0.00032291,2]
[426941161,1783035044000,-200.0,0.00032291,2]
[426941158,1783035044000,-200.0,0.00032291,2]
[426941166,1783035044000,-150.0,0.00032383,2]
[426941160,1783035044000,-200.0,0.00032291,2]
[426941155,1783035044000,-200.0,0.00032291,2]
[426941152,1783035044000,-200.0,0.00032291,2]
[426941151,1783035044000,-200.0,0.00032291,2]
[426941162,1783035044000,-200.0,0.00032291,2]
[426941156,1783035044000,-200.0,0.00032291,2]
[426941237,1783035045000,-151.0,0.00032877,7]
[426941234,1783035045000,-1742.90169,0.00032877,5]
[426941232,1783035045000,-1742.90169,0.00032877,5]
[426941233,1783035045000,-1742.90169,0.00032877,5]
[426941228,1783035045000,-1000.0,0.00032877,10]
[426941227,1783035045000,-1000.0,0.00032877,10]
[426941230,1783035045000,-1000.0,0.00032877,10]
[426941235,1783035045000,-1742.90169,0.00032877,5]
[426941224,1783035045000,-1000.0,0.00032877,10]
[426941231,1783035045000,-1000.0,0.00032877,10]
[426941229,1783035045000,-1000.0,0.00032877,10]
[426941244,1783035045000,-163.28050145,0.00032877,10]
[426941238,1783035045000,-151.0,0.00032877,7]
[426941242,1783035045000,-631.09,0.00032877,30]
[426941246,1783035045000,-151.0,0.00032917,7]
[426941240,1783035045000,-151.0,0.00032877,7]
[426941239,1783035045000,-151.0,0.00032877,7]
[426941241,1783035045000,-150.71519319,0.00032877,30]
[426941243,1783035045000,-662.78,0.00032877,30]
[426941245,1783035045000,-151.0,0.00032917,7]
[426941247,1783035045000,-151.0,0.00032917,7]
[426941226,1783035045000,-1000.0,0.00032877,10]
[426941236,1783035045000,-151.0,0.00032877,7]
[426941225,1783035045000,-1000.0,0.00032877,10]
[426941209,1783035045000,-500.0,0.00032638,7]
[426941220,1783035045000,-150.0,0.00032818,30]
[426941249,1783035045000,-1728.61385,0.00032923,36]
[426941200,1783035045000,-150.0,0.00032589,30]
[426941201,1783035045000,-1728.61385,0.0003259,33]
[426941208,1783035045000,-1000.0,0.00032638,2]
[426941202,1783035045000,-1728.61386,0.0003259,33]
[426941204,1783035045000,-151.0,0.00032636,14]
[426941205,1783035045000,-516.28110742,0.00032638,120]
[426941207,1783035045000,-1000.0,0.00032638,2]
[426941203,1783035045000,-342.18,0.00032595,3]
[426941206,1783035045000,-500.0,0.00032638,120]
[426941223,1783035045000,-1000.0,0.00032877,10]
[426941213,1783035045000,-734.8,0.00032699,120]
[426941210,1783035045000,-500.0,0.00032638,7]
[426941211,1783035045000,-150.0,0.00032641,30]
[426941216,1783035045000,-300.0,0.00032744,7]
[426941217,1783035045000,-533.0,0.0003275,16]
[426941214,1783035045000,-390.64,0.000327,7]
[426941215,1783035045000,-150.0,0.0003272,30]
[426941221,1783035045000,-150.0,0.00032851,30]
[426941219,1783035045000,-150.0,0.00032818,30]
[426941222,1783035045000,-1000.0,0.00032877,10]
[426941218,1783035045000,-151.0,0.00032762,2]
[426941212,1783035045000,-200.0,0.00032659,2]
[426941248,1783035045000,-151.0,0.00032923,2]
[426941265,1783035045000,-266.177845,0.00033,7]
[426941253,1783035045000,-196.88915172,0.00032932,2]
[426941279,1783035045000,-151.0,0.00033,7]
[426941281,1783035045000,-151.0,0.00033,7]
[426941280,1783035045000,-151.0,0.00033,7]
[426941283,1783035045000,-176.032772,0.00033,7]
[426941284,1783035045000,-176.032772,0.00033,7]
[426941282,1783035045000,-176.032772,0.00033,7]
[426941289,1783035045000,-291.666503,0.00033,7]
[426941286,1783035045000,-151.0,0.00033,7]
[426941290,1783035045000,-198.21795,0.00033,7]
[426941288,1783035045000,-151.0,0.00033,7]
[426941278,1783035045000,-151.0,0.00033,7]
[426941285,1783035045000,-176.032772,0.00033,7]
[426941293,1783035045000,-198.21795,0.00033,7]
[426941291,1783035045000,-198.21795,0.00033,7]
[426941292,1783035045000,-198.21795,0.00033,7]
[426941294,1783035045000,-151.0,0.00033,7]
[426941295,1783035045000,-156.550377,0.00033,7]
[426941298,1783035045000,-251.358745,0.00033,7]
[426941299,1783035045000,-156.550377,0.00033,7]
[426941296,1783035045000,-251.358745,0.00033,7]
[426941300,1783035045000,-251.358745,0.00033,7]
[426941250,1783035045000,-1728.61386,0.00032923,36]
[426941287,1783035045000,-151.0,0.00033,7]
[426941277,1783035045000,-333.61536,0.00033,7]
[426941297,1783035045000,-156.550377,0.00033,7]
[426941274,1783035045000,-151.0,0.00033,7]
[426941276,1783035045000,-333.61536,0.00033,7]
[426941252,1783035045000,-1728.61386,0.00032923,36]
[426941251,1783035045000,-1728.61386,0.00032923,36]
[426941254,1783035045000,-190.2042748,0.00032965,2]
[426941255,1783035045000,-150.0,0.00032983,30]
[426941259,1783035045000,-5173.14778081,0.00033,120]
[426941257,1783035045000,-4190.0,0.00033,6]
[426941262,1783035045000,-800.0,0.00033,5]
[426941260,1783035045000,-800.0,0.00033,5]
[426941258,1783035045000,-531.01960838,0.00033,2]
[426941261,1783035045000,-150.0,0.00033,2]
[426941256,1783035045000,-54737.27672123,0.00033,120]
[426941264,1783035045000,-151.0,0.00033,7]
[426941263,1783035045000,-151.0,0.00033,7]
[426941273,1783035045000,-333.61536,0.00033,7]
[426941272,1783035045000,-151.0,0.00033,7]
[426941271,1783035045000,-151.0,0.00033,7]
[426941267,1783035045000,-266.177845,0.00033,7]
[426941275,1783035045000,-333.61536,0.00033,7]
[426941268,1783035045000,-266.177845,0.00033,7]
[426941269,1783035045000,-295.594897,0.00033,7]
[426941266,1783035045000,-266.177845,0.00033,7]
[426941301,1783035045000,-156.550377,0.00033,7]
[426941270,1783035045000,-151.0,0.00033,7]
[426941326,1783035046000,-10323.17350645,0.000331,2]
[426941334,1783035046000,-1000.0,0.00033199,2]
[426941331,1783035046000,-250.69,0.00033181,30]
[426941330,1783035046000,-150.0,0.00033114,30]
[426941328,1783035046000,-390.64,0.000331,30]
[426941329,1783035046000,-150.0,0.00033114,30]
[426941332,1783035046000,-151.0,0.00033197,14]
[426941325,1783035046000,-151.0,0.00033,7]
[426941341,1783035046000,-6493.676491,0.000332,7]
[426941335,1783035046000,-500.0,0.00033199,7]
[426941338,1783035046000,-374.67,0.000332,14]
[426941342,1783035046000,-212.7422,0.000332,7]
[426941337,1783035046000,-2337.0,0.000332,11]
[426941339,1783035046000,-6493.676491,0.000332,7]
[426941340,1783035046000,-151.0,0.000332,7]
[426941343,1783035046000,-151.0,0.000332,7]
[426941327,1783035046000,-200.0,0.000331,12]
[426941344,1783035046000,-6493.676491,0.000332,7]
[426941336,1783035046000,-100720.62387495,0.000332,2]
[426941324,1783035046000,-701.564091,0.00033,7]
[426941311,1783035046000,-151.000009,0.00033,7]
[426941319,1783035046000,-5523.515329,0.00033,7]
[426941346,1783035046000,-6493.676491,0.000332,7]
[426941302,1783035046000,-251.358745,0.00033,7]
[426941303,1783035046000,-851.483759,0.00033,7]
[426941305,1783035046000,-851.483759,0.00033,7]
[426941306,1783035046000,-851.483759,0.00033,7]
[426941304,1783035046000,-851.483759,0.00033,7]
[426941307,1783035046000,-258.913443,0.00033,7]
[426941310,1783035046000,-258.913443,0.00033,7]
[426941308,1783035046000,-258.913443,0.00033,7]
[426941323,1783035046000,-701.564091,0.00033,7]
[426941309,1783035046000,-258.913443,0.00033,7]
[426941312,1783035046000,-589.093131,0.00033,7]
[426941314,1783035046000,-589.093131,0.00033,7]
[426941315,1783035046000,-151.0,0.00033,7]
[426941316,1783035046000,-589.093131,0.00033,7]
[426941317,1783035046000,-5523.515329,0.00033,7]
[426941318,1783035046000,-5523.515329,0.00033,7]
[426941320,1783035046000,-5523.515329,0.00033,7]
[426941321,1783035046000,-701.564091,0.00033,7]
[426941322,1783035046000,-701.564091,0.00033,7]
[426941313,1783035046000,-589.093131,0.00033,7]
[426941348,1783035046000,-161.383115,0.000332,7]
[426941345,1783035046000,-151.0,0.000332,7]
[426941349,1783035046000,-151.0,0.000332,7]
[426941373,1783035046000,-202.329909,0.00033353,7]
[426941379,1783035046000,-333.61536,0.00033353,7]
[426941374,1783035046000,-151.0,0.00033353,7]
[426941377,1783035046000,-151.0,0.00033353,7]
[426941375,1783035046000,-151.0,0.00033353,7]
[426941380,1783035046000,-333.61536,0.00033353,7]
[426941378,1783035046000,-333.61536,0.00033353,7]
[426941381,1783035046000,-151.0,0.00033353,7]
[426941383,1783035046000,-151.0,0.00033353,7]
[426941384,1783035046000,-151.0,0.00033353,7]
[426941382,1783035046000,-151.0,0.00033353,7]
[426941391,1783035046000,-151.0,0.00033353,7]
[426941387,1783035046000,-176.032772,0.00033353,7]
[426941389,1783035046000,-151.0,0.00033353,7]
[426941385,1783035046000,-176.032772,0.00033353,7]
[426941390,1783035046000,-151.0,0.00033353,7]
[426941386,1783035046000,-176.032772,0.00033353,7]
[426941392,1783035046000,-198.21795,0.00033353,7]
[426941347,1783035046000,-151.0,0.000332,7]
[426941376,1783035046000,-333.61536,0.00033353,7]
[426941370,1783035046000,-266.177845,0.00033353,7]
[426941388,1783035046000,-176.032772,0.00033353,7]
[426941369,1783035046000,-266.177845,0.00033353,7]
[426941351,1783035046000,-316.821825,0.000332,7]
[426941371,1783035046000,-266.177845,0.00033353,7]
[426941350,1783035046000,-316.821825,0.000332,7]
[426941352,1783035046000,-316.821825,0.000332,7]
[426941354,1783035046000,-150.0,0.00033246,30]
[426941355,1783035046000,-300.0,0.00033255,7]
[426941358,1783035046000,-174.44,0.00033292,14]
[426941357,1783035046000,-174.44,0.00033292,14]
[426941359,1783035046000,-1196.68769754,0.00033301,2]
[426941356,1783035046000,-150.0,0.00033262,30]
[426941353,1783035046000,-316.821825,0.000332,7]
[426941362,1783035046000,-150.0,0.00033351,30]
[426941361,1783035046000,-372.15616408,0.00033314,2]
[426941363,1783035046000,-1000.0,0.00033352,2]
[426941367,1783035046000,-151.0,0.00033353,7]
[426941368,1783035046000,-151.0,0.00033353,7]
[426941364,1783035046000,-500.0,0.00033352,7]
[426941365,1783035046000,-151.0,0.00033353,7]
[426941360,1783035046000,-441.43113121,0.0003331,2]
[426941366,1783035046000,-151.0,0.00033353,7]
[426941372,1783035046000,-266.177845,0.00033353,7]
[426941436,1783035047000,-186.821722,0.00033353,7]
[426941434,1783035047000,-151.0,0.00033353,7]
[426941432,1783035047000,-151.0,0.00033353,7]
[426941431,1783035047000,-701.564091,0.00033353,7]
[426941433,1783035047000,-151.0,0.00033353,7]
[426941430,1783035047000,-701.564091,0.00033353,7]
[426941429,1783035047000,-701.564091,0.00033353,7]
[426941427,1783035047000,-5523.515329,0.00033353,7]
[426941424,1783035047000,-5523.515329,0.00033353,7]
[426941441,1783035047000,-36436.09,0.00033411,2]
[426941426,1783035047000,-5523.515329,0.00033353,7]
[426941428,1783035047000,-701.564091,0.00033353,7]
[426941437,1783035047000,-151.0,0.00033353,7]
[426941449,1783035047000,-151.0,0.00033414,7]
[426941435,1783035047000,-151.0,0.00033353,7]
[426941438,1783035047000,-318.152491,0.00033353,7]
[426941439,1783035047000,-150.0,0.00033377,30]
[426941444,1783035047000,-6493.676491,0.00033414,7]
[426941442,1783035047000,-1000.0,0.00033411,2]
[426941443,1783035047000,-500.0,0.00033411,7]
[426941445,1783035047000,-151.0,0.00033414,7]
[426941446,1783035047000,-6493.676491,0.00033414,7]
[426941448,1783035047000,-6493.676491,0.00033414,7]
[426941452,1783035047000,-151.0,0.00033414,7]
[426941450,1783035047000,-6493.676491,0.00033414,7]
[426941422,1783035047000,-589.093131,0.00033353,7]
[426941440,1783035047000,-151.0,0.00033408,14]
[426941425,1783035047000,-5523.515329,0.00033353,7]
[426941398,1783035047000,-1742.90169,0.00033353,5]
[426941420,1783035047000,-151.0,0.00033353,7]
[426941393,1783035047000,-198.21795,0.00033353,7]
[426941395,1783035047000,-198.21795,0.00033353,7]
[426941394,1783035047000,-198.21795,0.00033353,7]
[426941396,1783035047000,-1742.90169,0.00033353,5]
[426941399,1783035047000,-1742.90169,0.00033353,5]
[426941397,1783035047000,-1742.90169,0.00033353,5]
[426941401,1783035047000,-156.550377,0.00033353,7]
[426941400,1783035047000,-151.0,0.00033353,7]
[426941402,1783035047000,-251.358745,0.00033353,7]
[426941403,1783035047000,-156.550377,0.00033353,7]
[426941404,1783035047000,-251.358745,0.00033353,7]
[426941407,1783035047000,-251.358745,0.00033353,7]
[426941418,1783035047000,-589.093131,0.00033353,7]
[426941406,1783035047000,-251.358745,0.00033353,7]
[426941412,1783035047000,-851.483759,0.00033353,7]
[426941408,1783035047000,-156.550377,0.00033353,7]
[426941411,1783035047000,-851.483759,0.00033353,7]
[426941413,1783035047000,-258.913443,0.00033353,7]
[426941415,1783035047000,-258.913443,0.00033353,7]
[426941410,1783035047000,-851.483759,0.00033353,7]
[426941416,1783035047000,-258.913443,0.00033353,7]
[426941409,1783035047000,-851.483759,0.00033353,7]
[426941414,1783035047000,-258.913443,0.00033353,7]
[426941419,1783035047000,-589.093131,0.00033353,7]
[426941417,1783035047000,-589.093131,0.00033353,7]
[426941453,1783035047000,-316.821825,0.00033414,7]
[426941405,1783035047000,-156.550377,0.00033353,7]
[426941447,1783035047000,-151.0,0.00033414,7]
[426941492,1783035047000,-300.0,0.00033414,2]
[426941454,1783035047000,-316.821825,0.00033414,7]
[426941489,1783035047000,-529.6723478,0.00033414,2]
[426941490,1783035047000,-300.0,0.00033414,2]
[426941491,1783035047000,-300.0,0.00033414,2]
[426941494,1783035047000,-954.40977015,0.00033414,2]
[426941493,1783035047000,-300.0,0.00033414,2]
[426941495,1783035047000,-1807.51296116,0.00033414,2]
[426941496,1783035047000,-300.0,0.00033414,2]
[426941498,1783035047000,-300.0,0.00033414,2]
[426941500,1783035047000,-300.0,0.00033414,2]
[426941497,1783035047000,-564.57560998,0.00033414,2]
[426941502,1783035047000,-376.22595197,0.00033414,2]
[426941501,1783035047000,-311.25771399,0.00033414,2]
[426941488,1783035047000,-345.80256672,0.00033414,2]
[426941499,1783035047000,-597.3150425,0.00033414,2]
[426941503,1783035047000,-569.07827579,0.00033414,2]
[426941506,1783035047000,-300.0,0.00033414,2]
[426941509,1783035047000,-514.02377053,0.00033414,2]
[426941507,1783035047000,-300.0,0.00033414,2]
[426941508,1783035047000,-300.0,0.00033414,2]
[426941505,1783035047000,-300.0,0.00033414,2]
[426941515,1783035047000,-300.0,0.00033414,2]
[426941514,1783035047000,-300.0,0.00033414,2]
[426941510,1783035047000,-300.0,0.00033414,2]
[426941511,1783035047000,-584.85636615,0.00033414,2]
[426941512,1783035047000,-300.0,0.00033414,2]
[426941513,1783035047000,-454.31833835,0.00033414,2]
[426941504,1783035047000,-300.0,0.00033414,2]
[426941486,1783035047000,-300.0,0.00033414,2]
[426941451,1783035047000,-151.0,0.00033414,7]
[426941482,1783035047000,-300.0,0.00033414,2]
[426941457,1783035047000,-300.0,0.00033414,2]
[426941456,1783035047000,-316.821825,0.00033414,7]
[426941455,1783035047000,-316.821825,0.00033414,7]
[426941458,1783035047000,-300.0,0.00033414,2]
[426941459,1783035047000,-300.0,0.00033414,2]
[426941460,1783035047000,-300.0,0.00033414,2]
[426941463,1783035047000,-351.52688988,0.00033414,2]
[426941487,1783035047000,-300.0,0.00033414,2]
[426941462,1783035047000,-300.0,0.00033414,2]
[426941465,1783035047000,-300.0,0.00033414,2]
[426941466,1783035047000,-300.0,0.00033414,2]
[426941472,1783035047000,-300.0,0.00033414,2]